Cogmind - Beta 10.2 @@@ ROGUE MODE // 2020.11.01 @ 15:56:23 // Halloween2020/ForbiddenLore Player: cptwinky Result: Escaped! Performance ------------- Evolutions (9) 4500 Regions Visited (25) 5000 Robots Destroyed (405) 2025 Value Destroyed (24031) 24031 Prototype IDs (22) 440 Alien Tech Used (0) 0 Bonus (15431) 15431 TOTAL SCORE: 51427 Bonus ------- High Alert Combat Kills 3086 Follower Combat Kills 2844 Entered Garrisons 2000 Used RIF Installer 5000 Win 3000 Friendly Fire -499 Cogmind --------- Core Integrity 1075/1600 Matter 79/300 Energy 320/350 System Corruption 4% Temperature Cool (8) Movement Treading (177) Ox1 Location To Epsilon Eridani Parts ------- > --- POWER (2) -------- Reinforced Quantum Reactor > --- PROPULSION (4) --- Armored Heavy Treads Advanced Heavy Treads > --- UTILITY (17) ----- Advanced Cooling System Large Storage Unit High-capacity Storage Unit High-capacity Storage Unit High-capacity Storage Unit Advanced Target Analyzer Advanced Armor Integrity Analyzer Layered Heavy Armor Plating EM Dispersion Field Advanced Force Field Relay Coupler [Swarmer] (47) Relay Coupler [Grunt] (27) Relay Coupler [Sentry] (23) > --- WEAPON (2) ------- KE Penetrator KE Penetrator > --- INVENTORY (34) --- Light Quantum Reactor Biometal Medium Treads Armored Heavy Treads Armored Heavy Treads Armored Heavy Treads Advanced Heat Sink Matter Compressor (250) Advanced Focal Shield Advanced Force Field Relay Coupler [Swarmer] (49) Relay Coupler [Grunt] (34) Relay Coupler [Sentry] (25) Relay Coupler [Sentry] (25) Relay Coupler [Sentry] (25) Relay Coupler [Sentry] (27) Relay Coupler [Demolisher] (20) Relay Coupler [Specialist] (24) Relay Coupler [Specialist] (23) Advanced Component Analysis Suite Enhanced Nova Cannon Enhanced Nova Cannon Enhanced Nova Cannon Hardcell Cannon Hardcell Cannon Fusion Bomb Launcher Improved Remote Datajack Advanced Remote Datajack Force Lance Peak State ------------ > --- POWER ------------ Reinforced Antimatter Reactor Light Quantum Reactor > --- PROPULSION ------- Medium Treads Biometal Medium Treads Biometal Heavy Treads > --- UTILITY ---------- Advanced Cooling System Large Storage Unit Large Storage Unit High-capacity Storage Unit High-capacity Storage Unit High-capacity Storage Unit Advanced Signal Interpreter Advanced Armor Integrity Analyzer Quantum Capacitor Advanced Powered Armor EM Dispersion Field Relay Coupler [NC] Relay Coupler [Swarmer] Relay Coupler [Grunt] Relay Coupler [Sentry] Relay Coupler [Hunter] > --- WEAPON ----------- Gamma Rifle Enhanced Nova Cannon > --- INVENTORY -------- Light Antimatter Reactor Medium Treads Biometal Medium Treads Armored Heavy Treads Advanced Heavy Treads Matter Compressor Long-range Sensor Array Improved Weapon Shielding Advanced Focal Shield Advanced Force Field Advanced Force Field Relay Coupler [NC] Relay Coupler [Swarmer] Relay Coupler [Grunt] Relay Coupler [Grunt] Relay Coupler [Grunt] Relay Coupler [Sentry] Relay Coupler [Sentry] Relay Coupler [Sentry] Relay Coupler [Sentry] Relay Coupler [Sentry] Relay Coupler [Demolisher] Relay Coupler [Specialist] Relay Coupler [Specialist] Relay Coupler [Hunter] Relay Coupler [Hunter] Advanced Component Analysis Suite Gamma Rifle Enhanced Nova Cannon Enhanced Nova Cannon KE Penetrator KE Penetrator Hardcell Cannon Hardcell Cannon Fusion Bomb Launcher Improved Remote Datajack Advanced Remote Datajack Force Lance [Rating: 155] Favorites ----------- Power Neutrino Core Engine Deuterium Engine Power Core Neutrino Core Reactor Light Quantum Reactor Propulsion Light Treads Treads Light Treads Leg Myomer Leg Wheel Armored Wheel Utility High-capacity Storage Unit Device System Backup Module Storage High-capacity Storage Unit Processor Advanced Signal Interpreter Hackware Relay Coupler [Sentry] Protection Hardened Heavy Armor Plating Weapon Heavy Machine Gun Energy Gun Gamma Rifle Energy Cannon Enhanced Nova Cannon Ballistic Gun Heavy Machine Gun Ballistic Cannon Heavy Gauss Cannon Launcher Advanced EMP Blaster Special Weapon Remote Datajack Impact Weapon Maul Slashing Weapon Power Sword Piercing Weapon Spear Special Melee Weapon Datajack Build | -11 -10 -10 -9 -9 -9 -9 -7 -7 -7 -7 -6 -6 -5 -5 -4 -4 -4 -4 -3 -3 -2 -2 -2 -2 -1 ------- Run | Scr Mat Min Mat Sto Gar Rec Fac Gar Fac Gar Fac Gar Fac Gar Fac Gar Fac Gar Res Gar Res Gar Res Gar Acc Slots Evolved 18 | . . . 2 . . . 4 . . . 2 . 2 . 2 . . . 2 . 2 . . . 2 Power 1 | . . . . . . . . . . . . . . . 1 . . . . . . . . . . Propulsion 2 | . . . . . . . 1 . . . . . . . . . . . . . . . . . 1 Utility 15 | . . . 2 . . . 3 . . . 2 . 2 . 1 . . . 2 . 2 . . . 1 Weapon . | . . . . . . . . . . . . . . . . . . . . . . . . . . Parts Attached 581 | 7 6 4 10 16 12 3 37 23 9 21 9 14 56 20 76 14 66 16 11 30 2 17 19 20 63 Power 39 | 1 1 1 . 1 1 . 2 . . 1 . . 3 1 8 . 3 2 . 2 . 1 4 2 5 Engine 8 | 1 1 1 . 1 1 . . . . 1 . . 1 . . . . . . . . . . . 1 Core 13 | . . . . . . . 2 . . . . . 2 1 5 . . 1 . 2 . . . . . Reactor 18 | . . . . . . . . . . . . . . . 3 . 3 1 . . . 1 4 2 4 Propulsion 77 | 2 1 2 1 3 2 . 5 7 3 3 1 . 4 1 13 2 6 2 . 4 1 1 2 2 9 Treads 53 | 2 1 1 1 3 2 . 4 3 . . . . 3 . 5 2 5 2 . 4 1 1 2 2 9 Leg 2 | . . . . . . . . . . . . . . . 2 . . . . . . . . . . Wheel 22 | . . 1 . . . . 1 4 3 3 1 . 1 1 6 . 1 . . . . . . . . Hover . | . . . . . . . . . . . . . . . . . . . . . . . . . . Flight . | . . . . . . . . . . . . . . . . . . . . . . . . . . Utility 206 | 2 2 . 4 4 3 . 14 4 2 4 5 5 16 9 23 7 28 5 7 12 1 10 6 8 25 Device 73 | . . . . . 1 . 2 1 . 1 . . 2 3 8 3 14 3 2 6 1 5 5 2 14 Storage 17 | 2 2 . . . 1 . 1 1 1 . 4 . 1 . 1 . . 1 . . . 2 . . . Processor 8 | . . . . . . . 1 . . . . . . 2 1 . . . . . . 1 1 1 1 Hackware 60 | . . . . . . . 7 1 . 3 1 4 8 3 6 4 6 . 3 4 . . . 4 6 Protection 48 | . . . 4 4 1 . 3 1 1 . . 1 5 1 7 . 8 1 2 2 . 2 . 1 4 Artifact . | . . . . . . . . . . . . . . . . . . . . . . . . . . Weapon 259 | 2 2 1 5 8 6 3 16 12 4 13 3 9 33 9 32 5 29 7 4 12 . 5 7 8 24 Energy Gun 38 | 1 . . . 2 3 . . . . . . . 1 2 1 . 7 4 1 3 . 3 1 4 5 Energy Cannon 30 | . . . . . . 1 . 1 1 1 1 1 6 1 3 1 1 . 1 2 . 1 1 2 5 Ballistic Gun 65 | 1 2 1 4 4 1 1 5 6 3 8 1 4 7 1 7 1 4 . . . . . . . 4 Ballistic Cannon 11 | . . . . . . . . . . . . . 1 . 1 1 2 2 . 2 . . 2 . . Launcher 28 | . . . . 2 2 . . 2 . . . 1 4 2 6 . 2 . . . . 1 . 2 4 Special Weapon 53 | . . . . . . . . . . 3 1 3 11 2 8 2 8 1 . 5 . . 3 . 6 Impact Weapon 5 | . . . 1 . . 1 3 . . . . . . . . . . . . . . . . . . Slashing Weapon 6 | . . . . . . . . . . . . . . . 4 . 2 . . . . . . . . Piercing Weapon 15 | . . . . . . . 2 1 . 1 . . 3 1 2 . 3 . 2 . . . . . . Special Melee Weapon 8 | . . . . . . . 6 2 . . . . . . . . . . . . . . . . . Unidentified Prototypes 5 | . . . . . . . 1 . . . 1 . . 1 1 . . . . 1 . . . . . Parts Lost 119 | . 2 1 5 2 3 . 5 8 1 . . 1 10 8 17 1 13 4 . 9 . 5 1 3 20 Power 17 | . 1 . . 1 1 . . . . . . . . 1 4 . 2 1 . 1 . 1 . . 4 Propulsion 24 | . . 1 1 . . . 1 5 . . . . 3 1 4 . 1 1 . 2 . . . . 4 Utility 48 | . . . 2 1 . . 3 1 1 . . 1 3 3 6 1 8 2 . 3 . 3 1 1 8 Weapon 30 | . 1 . 2 . 2 . 1 2 . . . . 4 3 3 . 2 . . 3 . 1 . 2 4 Highest Loss Streak 10 | . 2 1 4 1 1 . 2 6 1 . . 1 2 4 3 1 3 2 . 8 . 3 1 3 10 Average Slot Usage (%) 92 | . 96 99 99 99 99 100 95 95 92 85 90 93 88 89 90 94 93 93 94 91 85 89 90 90 86 Engine 2 | . 10 14 11 10 11 11 3 . . 5 6 6 1 . . . . . . . . . . . . Core 3 | . . . . . . . 3 7 7 1 . . 3 5 9 5 4 . 4 8 8 7 . . . Reactor 1 | . . . . . . . . . . . . . . . . 5 5 8 4 . . . 7 8 6 Treads 9 | . 27 26 21 22 22 22 18 11 2 . . . 4 5 7 7 9 10 9 8 8 7 8 8 10 Wheel 4 | . . 1 . . . . 3 10 15 16 20 20 6 5 2 . . . . . . . . . . Device 7 | . . . . . 2 11 4 11 7 1 6 . 3 3 4 14 10 18 14 11 11 18 16 13 11 Storage 25 | . 28 28 22 22 27 33 23 26 30 30 31 33 29 29 26 26 26 26 23 23 21 21 21 21 17 Processor 3 | . . . . . . . 1 . . . . . . 3 8 10 7 5 4 4 4 5 12 13 7 Hackware 10 | . . . . . . . 10 7 5 5 4 12 17 9 12 9 9 10 14 18 13 9 8 10 20 Protection 6 | . . . 22 22 14 . 8 3 7 7 6 6 6 13 6 . 7 2 8 2 8 7 4 4 2 Energy Gun 2 | . 6 . . 7 18 3 . . . . . . . 3 1 . 3 4 5 6 . 2 3 3 2 Energy Cannon 1 | . . . . . . 7 1 . . . . . 2 4 2 . . . . 2 8 5 . 3 2 Ballistic Gun 6 | . 21 28 21 14 3 7 8 12 14 11 12 11 5 . 2 3 3 . . . . . . . 2 Naked Turns . | . . . . . . . . . . . . . . . . . . . . . . . . . . Heaviest Build 249 | 15 71 75 80 80 99 100 110 132 166 169 201 202 209 207 226 213 232 222 208 246 248 249 222 228 230 Greatest Support 138 | 40 40 40 40 40 40 40 60 60 40 40 36 36 40 28 102 93 98 98 98 103 105 105 105 100 138 Greatest Overweight (x) 16 | . 1 7 3 1 2 2 6 6 5 6 5 5 16 7 13 13 2 2 2 2 2 2 2 2 1 Average Overweight (x) 3 | . . 1 1 1 1 2 3 3 3 4 4 5 7 6 4 2 2 2 2 1 2 1 1 2 1 Largest Inventory Capacity 52 | 8 20 20 20 20 26 26 26 34 42 36 52 44 44 44 44 44 44 44 44 44 44 50 40 40 40 Average Capacity 37 | 5 13 20 20 20 22 26 26 29 34 36 42 44 44 44 44 44 44 44 44 44 44 42 40 40 36 Most Carried 44 | 4 16 20 20 20 26 26 26 31 36 36 37 44 44 44 44 43 44 44 44 44 44 44 40 40 40 Average Carried 34 | 2 9 19 19 19 21 25 25 24 33 35 35 36 42 37 42 37 43 41 43 41 43 41 39 39 34 Final Capacity 44 | 8 20 20 20 20 26 26 26 34 36 36 44 44 44 44 44 44 44 44 44 44 44 40 40 40 34 Final Carried 44 | 4 16 20 19 20 26 26 26 31 36 36 35 44 41 43 37 43 38 44 44 44 44 40 39 40 31 Class Distribution -------------------- 64% | Botlord-Mutant 16% | Hauler-Mutant 16% | Bothacker-Mutant Dominant Class ---------------- Mutant | -10/Materials Hauler-Mutant | -10/Mines Hauler-Mutant | -9/Materials Hauler-Mutant | -9/Storage Hauler-Mutant | -9/Garrison Bothacker-Mutant | -9/Recycling Hauler-Mutant | -7/Factory Hauler-Mutant | -7/Garrison Bothacker-Mutant | -7/Factory Bothacker-Mutant | -7/Garrison Bothacker-Mutant | -6/Factory Botlord-Mutant | -6/Garrison Botlord-Mutant | -5/Factory Botlord-Mutant | -5/Garrison Botlord-Mutant | -4/Factory Botlord-Mutant | -4/Garrison Botlord-Mutant | -4/Factory Botlord-Mutant | -4/Garrison Botlord-Mutant | -3/Research Botlord-Mutant | -3/Garrison Botlord-Mutant | -2/Research Botlord-Mutant | -2/Garrison Botlord-Mutant | -2/Research Botlord-Mutant | -2/Garrison Botlord-Mutant | -1/Access Resources | -11 -10 -10 -9 -9 -9 -9 -7 -7 -7 -7 -6 -6 -5 -5 -4 -4 -4 -4 -3 -3 -2 -2 -2 -2 -1 ----------- Run | Scr Mat Min Mat Sto Gar Rec Fac Gar Fac Gar Fac Gar Fac Gar Fac Gar Fac Gar Res Gar Res Gar Res Gar Acc Matter Collected 11520 | 274 257 259 151 478 212 . 468 699 147 485 70 590 995 334 1260 303 936 878 49 668 20 352 167 382 1086 Remotely . | . . . . . . . . . . . . . . . . . . . . . . . . . . Salvage Created 21543 | 50 442 176 435 854 775 . 483 852 304 538 . 629 1532 311 3039 351 1258 612 49 1517 . 1479 1077 1333 3447 Parts 985 | 1 39 22 25 59 53 . 26 25 12 22 . 32 76 15 143 13 59 20 2 48 . 55 35 32 171 Haulers Intercepted 8 | . 1 . . 3 . . . . . . . . . . . . . . . . . . 1 . 3 Recyclers Shooed 13 | . . . 1 1 . 2 . . 1 . . . . . 1 . . . 1 . . . 2 . 4 Parts Field Recycled . | . . . . . . . . . . . . . . . . . . . . . . . . . . Retrieved Matter . | . . . . . . . . . . . . . . . . . . . . . . . . . . Parts Self-Destructed . | . . . . . . . . . . . . . . . . . . . . . . . . . . Prevented . | . . . . . . . . . . . . . . . . . . . . . . . . . . Kills | -11 -10 -10 -9 -9 -9 -9 -7 -7 -7 -7 -6 -6 -5 -5 -4 -4 -4 -4 -3 -3 -2 -2 -2 -2 -1 ------- Run | Scr Mat Min Mat Sto Gar Rec Fac Gar Fac Gar Fac Gar Fac Gar Fac Gar Fac Gar Res Gar Res Gar Res Gar Acc Combat Hostiles Destroyed 353 | . 13 9 10 18 24 . 9 14 3 8 . 16 28 9 47 6 19 12 . 21 . 19 12 25 31 Melee 28 | . . . . . . . 1 . . . . . 3 1 17 . 6 . . . . . . . . Guns 143 | . 13 9 10 15 11 . 7 8 2 5 . 14 11 . 8 1 6 2 . 4 . 1 6 3 7 Cannons 59 | . . . . . . . . 2 . 3 . . 4 3 4 4 2 8 . 9 . 5 . 1 14 AOE 71 | . . . . 3 13 . . 4 . . . . 9 5 12 . . 1 . . . 5 . 14 5 Classes Destroyed 18 | 1 6 . 1 2 . . 2 . . . . . 4 . 1 1 . . . . . . . . . Worker 8 | . . . . 1 . . 1 . . . . . . . 2 . . . . . . . . . 4 Builder 12 | . 1 . . 1 . . . . . . . . . . 3 . . . . . . . . . 7 Hauler 8 | . 1 . . 3 . . . . . . . . . . . . . . . . . . 1 . 3 Recycler 9 | 1 . . . . . . 1 . 2 . . . . . 1 . . . . . . . . . 4 Mechanic 1 | . . . . . . . . . . . . . 1 . . . . . . . . . . . . Operator 3 | . 1 . 1 . . . . . . . . . . . . . 1 . . . . . . . . Watcher 8 | . 2 . . 1 . . 1 . . . . . 1 . . . . . 1 . . . 1 . 1 Swarmer 97 | . 8 8 1 3 14 . 3 4 . 3 . 9 7 3 6 1 1 . . 5 . 4 4 9 4 Saboteur 3 | . . . . . . . . . . . . . 1 . 2 . . . . . . . . . . Grunt 132 | . 5 1 7 9 8 . 3 9 . 4 . 7 7 5 16 1 5 5 . 11 . 6 6 10 7 Brawler 4 | . . . . . . . . . . . . . 2 . 1 . . . . . . . . 1 . Duelist 5 | . . . . 1 . . . . . . . . . . . 1 . . . . . 3 . . . Protector 1 | . . . . . . . . . . . . . . . 1 . . . . . . . . . . Sentry 26 | . . . 2 5 2 . 1 . 1 . . . 2 . 5 1 2 4 . 1 . . . . . Specialist 1 | . . . . . . . . . . . . . 1 . . . . . . . . . . . . Hunter 33 | . . . . . . . 1 1 1 . . . 4 1 8 . 3 . . 2 . . 2 4 6 Programmer 48 | . . . . . . . 1 . 1 1 . . 4 . 9 2 8 2 . 1 . 6 . . 13 Behemoth 6 | . . . . . . . . . . . . . . . . 1 . 1 . 1 . . . 1 2 Best Kill Streak 13 | 1 3 7 5 4 13 . 3 3 3 3 . 3 5 7 7 2 3 2 1 7 . 7 8 12 5 Combat Bots Only 13 | . 3 7 5 3 13 . 3 3 2 3 . 3 4 7 5 2 3 2 . 7 . 7 7 12 4 Max Kills in Single Turn 4 | 1 1 1 2 4 4 . 1 2 1 1 . 1 2 2 4 1 2 1 1 1 . 3 1 4 3 Gunslinging 1 | . . . 1 . 1 . . . . . . . . . . . . . . . . . . . . Exploded 4 | . . . . 3 4 . . 2 . . . . 2 2 3 . . 1 . . . 3 . 4 3 Melee 1 | . . . . . . . 1 . . . . . 1 1 1 . 1 . . . . . . . . Uniques/NPCs Destroyed . | . . . . . . . . . . . . . . . . . . . . . . . . . . Combat | -11 -10 -10 -9 -9 -9 -9 -7 -7 -7 -7 -6 -6 -5 -5 -4 -4 -4 -4 -3 -3 -2 -2 -2 -2 -1 -------- Run | Scr Mat Min Mat Sto Gar Rec Fac Gar Fac Gar Fac Gar Fac Gar Fac Gar Fac Gar Res Gar Res Gar Res Gar Acc Damage Taken 34598 | . 463 213 727 852 644 . 1248 1091 429 546 . 783 3356 756 5496 363 3045 1286 . 2818 121 2203 480 2013 5665 Core 2643 | . 32 28 86 187 52 . 189 74 21 79 . 28 106 14 288 48 202 62 . 243 . 84 39 256 525 Absorbed by Shields 3565 | . . . . . . . . . . 44 . 165 . . . 264 16 1126 . 956 . 226 . 496 272 Reduced by Siege Mode 331 | . . . . . . . . . . . . . . . 19 . 49 39 . 19 . 22 . . 183 Core Remaining (%) 69 | 100 . 76 . . . 18 . . . 48 . 96 . 88 . . . 47 . 81 . . . 73 67 Volleys Fired 1418 | 9 38 15 35 51 30 . 28 62 19 46 2 61 105 24 106 33 80 61 5 135 . 94 58 91 230 Largest 2 | 2 2 2 2 2 2 . 2 2 2 2 1 2 2 2 2 2 2 2 2 2 . 1 1 1 2 Hottest 178 | 70 70 40 40 90 90 . 56 56 79 56 30 60 178 178 128 162 176 125 125 140 . 120 120 120 150 Shots Fired 2040 | 18 75 30 70 100 55 . 49 111 28 75 2 102 162 27 156 41 117 114 6 158 . 94 58 91 301 Gun 1367 | 18 75 30 70 98 50 . 42 104 18 62 . 86 67 3 75 7 70 27 2 82 . 54 53 67 207 Cannon 429 | . . . . . . . 7 3 10 8 . 5 52 9 38 18 8 86 4 63 . 32 1 16 69 Launcher 93 | . . . . 2 5 . . 4 . . . 5 13 7 20 7 6 . . . . 8 . 8 8 Special 151 | . . . . . . . . . . 5 2 6 30 8 23 9 33 1 . 13 . . 4 . 17 Kinetic 963 | 9 59 30 70 80 8 . 42 104 18 62 . 86 65 2 82 10 19 86 . 17 . . . . 114 Thermal 346 | 9 16 . . . . . . . . . . . 54 10 31 15 43 . 4 46 . 32 1 16 69 Explosive 45 | . . . . 2 5 . . 4 . . . . 3 7 . . . . . . . 8 . 8 8 Electromagnetic 535 | . . . . 18 42 . 7 3 10 8 . 10 10 . 20 7 22 27 2 82 . 54 53 67 93 Robot Hit Streak 36 | 3 14 7 15 16 13 . 16 36 8 9 1 6 9 12 19 6 12 18 . 10 . 19 17 11 36 Robot Miss Streak 7 | 2 2 2 1 3 3 . 3 5 3 7 1 5 3 3 4 2 2 1 . 2 . 1 2 6 3 Penetration Max 1 | . . . . . . . 1 . 1 1 . . 1 1 1 . . . . . . . . . 1 Secondary Targets 21 | . . 4 3 1 2 . 1 2 1 . . 3 1 . 1 . 1 . . . . . . . 1 Max Gunslinging Chain 1 | . . 1 1 1 1 . 1 1 1 . . 1 1 . 1 . 1 . . . . . . . 1 Capacitor 418 | . . . . . . . . . . . . . . . . . . . . 94 . 84 54 83 103 Shots Hit Robots 1582 | 11 50 18 59 79 46 . 59 83 23 60 1 50 103 16 160 22 110 96 2 116 . 72 48 56 242 Core Hits 764 | 2 24 11 25 43 36 . 19 53 9 26 . 22 51 24 92 8 37 30 1 37 . 28 29 56 101 Critical Hits 57 | . . . 1 2 1 . . . . . . . 4 . 5 1 3 15 . 3 . 1 3 7 11 Critical Kills 21 | . . . 1 2 1 . . . . . . . 3 . 1 1 1 4 . 1 . . . 1 5 Critical Parts Destroyed 26 | . . . . . . . . . . . . . 1 . 3 . 2 6 . 2 . 1 3 3 5 Melee Attacks 170 | . . . 2 . . 1 34 2 . 9 . . 5 1 59 . 35 . 22 . . . . . . Impact 8 | . . . 2 . . 1 5 . . . . . . . . . . . . . . . . . . Slashing 72 | . . . . . . . . . . . . . . . 49 . 23 . . . . . . . . Piercing 69 | . . . . . . . 9 1 . 9 . . 5 1 10 . 12 . 22 . . . . . . Sneak Attacks 35 | . . . . . . . 12 . . . . . 4 1 11 . 6 . 1 . . . . . . Combat Hostiles 23 | . . . . . . . 4 . . . . . 4 1 8 . 6 . . . . . . . . Follow-up Attacks 6 | . . . . . . . . . . . . . . . 1 . 5 . . . . . . . . Damage Inflicted 50915 | 123 652 219 599 1329 1626 26 1118 1591 584 1380 . 1074 3427 1071 7802 623 3662 3134 130 3298 . 3119 1385 4178 8765 Guns 20959 | 123 645 219 583 1141 675 . 661 869 420 779 . 828 1077 45 1380 48 1388 495 . 1599 . 1393 1283 1123 4185 Cannons 11795 | . . . . . . . 157 72 164 96 . 69 1151 94 731 442 256 2586 . 1677 . 900 . 613 2787 Explosions 12333 | . . . . 180 951 . . 650 . . . 177 887 842 3119 133 575 53 . . . 814 . 2429 1523 Melee 5324 | . . . . . . . 272 . . 505 . . 312 90 2572 . 1443 . 130 . . . . . . Ramming 504 | . 7 . 16 8 . 26 28 . . . . . . . . . . . . 22 . 12 102 13 270 Kinetic 14687 | 72 580 219 583 815 53 . 661 869 420 779 . 828 1047 22 1562 168 369 2586 . 434 . . . . 2620 Thermal 10991 | 51 65 . . . 212 . . . . . . . 1343 117 1858 322 1054 53 . 1243 . 900 . 786 2987 Explosive 7021 | . . . . 180 739 . . 650 . . . . 217 842 . . . . . . . 814 . 2256 1323 Electromagnetic 12388 | . . . . 326 622 . 157 72 164 96 . 246 508 . 1810 133 796 495 . 1599 . 1393 1283 1123 1565 Impact 203 | . . . . . . . 203 . . . . . . . . . . . . . . . . . . Slashing 3000 | . . . . . . . . . . . . . . . 2064 . 936 . . . . . . . . Piercing 2121 | . . . . . . . 69 . . 505 . . 312 90 508 . 507 . 130 . . . . . . Highest Corruption 9 | . . . . . . . 1 . . . . . 7 1 8 4 6 3 . 4 . 9 2 1 4 Average Corruption 2 | . . . . . . . 1 . . . . . 2 1 4 2 2 1 . 3 . 4 1 1 2 Corruption Purged 50 | . . . . . . . 1 . . . . . 7 1 8 6 9 3 . 4 . 9 2 . . Effects 231 | . . . . . . . 3 . . . . . 13 . 53 8 30 3 . 34 . 39 1 5 42 Message Errors 57 | . . . . . . . 1 . . . . . 4 . 12 . 10 2 . 8 . 9 1 2 8 Matter Fused 45 | . . . . . . . . . . . . . 3 . 9 . 7 . . 6 . 11 . . 9 Heat Flow Errors 19 | . . . . . . . . . . . . . 1 . 5 1 1 . . 5 . 2 . . 4 Energy Discharges 29 | . . . . . . . 1 . . . . . 3 . 7 2 6 . . 6 . 3 . . 1 Parts Rejected 2 | . . . . . . . . . . . . . . . 1 . . . . . . 1 . . . Data Loss (minor) 34 | . . . . . . . 1 . . . . . 2 . 6 2 5 . . 6 . 5 . 2 5 Misfires 1 | . . . . . . . . . . . . . . . . . . . . . . 1 . . . Targeting Errors 37 | . . . . . . . . . . . . . . . 10 3 . 1 . 2 . 6 . 1 14 Weapon Failures 7 | . . . . . . . . . . . . . . . 3 . 1 . . 1 . 1 . . 1 Overload Shots . | . . . . . . . . . . . . . . . . . . . . . . . . . . Overflow Damage 1650 | . . . . . . . 113 42 . . . 26 58 . 692 28 139 . 54 55 . 66 . 17 360 Projectiles 492 | . . . . . . . . . . . . . 26 . 2 28 35 . . 55 . 58 . . 288 Explosions 401 | . . . . . . . . 42 . . . 26 32 . 218 . 32 . . . . 8 . 17 26 Melee 757 | . . . . . . . 113 . . . . . . . 472 . 72 . 54 . . . . . 46 Knockbacks 17 | . . . . . . . 2 . . . . . . . 3 1 . 7 . 3 . . . . 1 Impact 3 | . . . . . . . 2 . . . . . . . . . . . . . . . . . 1 Kinetic 14 | . . . . . . . . . . . . . . . 3 1 . 7 . 3 . . . . . Secondary . | . . . . . . . . . . . . . . . . . . . . . . . . . . Self-Inflicted Damage 709 | . . . . 82 30 . . . . . . . 74 14 101 . . 22 . . . 324 . 62 . Shots 28 | . . . . 2 3 . . . . . . . 5 2 6 . . 1 . . . 8 . 1 . Rammed 35 | . 3 . 3 1 . 6 . . . . . . . . . . . . . 1 . 1 7 2 11 Targets Rammed 39 | . 4 . 3 2 . 6 2 . . . . . . . . . . . . 1 . 1 7 2 11 Kicked . | . . . . . . . . . . . . . . . . . . . . . . . . . . Crushed 4 | . 1 . . 1 . . 2 . . . . . . . . . . . . . . . . . . Highest Temperature 558 | 54 60 2 57 186 198 . 60 5 . 97 . 75 377 93 373 252 218 197 100 215 . 192 333 331 558 Average Temperature 78 | 23 17 1 15 58 50 . 15 3 . 39 . 24 84 20 91 116 83 84 41 87 . 93 115 75 142 Received Heat Transfer 4732 | . 120 15 360 240 135 . 432 417 48 177 . 165 282 273 552 35 237 239 . 394 27 134 36 262 152 Effects 9 | . . . . . . . . . . . . . . . 1 3 . . . . . . . . 5 Shutdowns 3 | . . . . . . . . . . . . . . . . . . . . . . . . . 3 Energy Bleed 2 | . . . . . . . . . . . . . . . . . . . . . . . . . 2 Interference 3 | . . . . . . . . . . . . . . . . 3 . . . . . . . . . Short Circuit 1 | . . . . . . . . . . . . . . . 1 . . . . . . . . . . Siege Activations 13 | . . . . . . . . . . . . . . . 1 . 3 1 . 2 . 3 . . 3 Total Turns 809 | . . . . . . . . . . . . . . . 24 . 73 217 . 33 . 94 . . 368 Longest Duration 256 | . . . . . . . . . . . . . . . 24 . 31 217 . 17 . 41 . . 256 Robots Corrupted 57 | . . . . . 2 . 1 . 1 . . 2 1 . 6 1 3 1 . 9 . 11 7 7 5 Combat Hostiles 50 | . . . . . . . 1 . 1 . . 2 1 . 6 1 3 1 . 8 . 8 6 7 5 Parts Fried 121 | . . . . 3 3 . 2 1 2 . . 3 6 . 8 2 7 5 . 16 . 22 11 15 15 Impact Corruptions 4 | . . . . . . . 2 . . . . . . . . . . . . . . . . . 2 Robots Melted 2 | . . . . . . . . . . . . . . . . . 2 . . . . . . . . Combat Hostiles 2 | . . . . . . . . . . . . . . . . . 2 . . . . . . . . Parts Melted 24 | . . . . . . . 1 . . . . . 4 . . . 4 . . 2 . . . 2 11 Heat Transferred 10276 | 148 185 . . . 323 . . . . . . . 1787 187 1900 333 1212 50 . 856 . 629 . 581 2085 Parts Sabotaged 3 | . . . . . . . . . . . . . . . 3 . . . . . . . . . . Parts Stolen . | . . . . . . . . . . . . . . . . . . . . . . . . . . Parts Stripped . | . . . . . . . . . . . . . . . . . . . . . . . . . . Power Chain Reactions 14 | . . . . . 5 . . . . . . . 1 . 5 . . 1 . . . . . 1 1 Missiles Intercepted . | . . . . . . . . . . . . . . . . . . . . . . . . . . Alert | -11 -10 -10 -9 -9 -9 -9 -7 -7 -7 -7 -6 -6 -5 -5 -4 -4 -4 -4 -3 -3 -2 -2 -2 -2 -1 ------- Run | Scr Mat Min Mat Sto Gar Rec Fac Gar Fac Gar Fac Gar Fac Gar Fac Gar Fac Gar Res Gar Res Gar Res Gar Acc Peak Influence 1227 | 5 223 288 213 264 833 554 1162 831 547 765 459 923 1064 1187 1227 1173 640 538 366 326 192 512 379 829 562 Initial 1132 | . 3 42 7 8 68 374 1132 69 436 217 401 321 484 648 623 858 615 150 302 141 183 144 288 211 496 Average 424 | 1 79 158 85 128 576 481 267 466 432 499 436 559 450 1004 723 1048 302 355 302 146 183 333 286 628 127 Maximum Alert Level 4 | . 1 1 1 1 3 2 4 3 2 3 2 3 3 4 4 4 2 2 1 1 . 2 1 3 2 Low Security (%) 33 | 100 98 61 96 75 6 . 51 37 . . . . 40 . 2 . 42 9 15 81 100 33 21 . 83 Level 1 18 | . 1 38 3 24 13 11 38 7 34 24 . 25 3 . . . 20 51 84 18 . 19 78 15 10 Level 2 27 | . . . . . 49 88 . 24 65 57 100 46 24 10 45 . 37 38 . . . 46 . 43 6 Level 3 17 | . . . . . 30 . . 29 . 17 . 27 32 72 45 36 . . . . . . . 40 . Level 4 3 | . . . . . . . 9 . . . . . . 17 5 63 . . . . . . . . . Level 5 . | . . . . . . . . . . . . . . . . . . . . . . . . . . High Security . | . . . . . . . . . . . . . . . . . . . . . . . . . . Max Security . | . . . . . . . . . . . . . . . . . . . . . . . . . . Squads Dispatched 61 | . 3 . 1 1 . . 6 . 1 . . . 14 . 16 . 8 . . . 1 . 2 . 8 Investigation 11 | . 2 . . . . . . . . . . . 2 . 3 . . . . . 1 . 1 . 2 Extermination 19 | . . . . . . . 2 . 1 . . . 3 . 4 . 5 . . . . . 1 . 3 Reinforcement 20 | . 1 . 1 1 . . 3 . . . . . 6 . 3 . 2 . . . . . . . 3 Assault 8 | . . . . . . . . . . . . . 3 . 5 . . . . . . . . . . Garrison 3 | . . . . . . . 1 . . . . . . . 1 . 1 . . . . . . . . Intercept . | . . . . . . . . . . . . . . . . . . . . . . . . . . Construction Impeded 5 | . . . . 1 . . . . . . . . 2 . 1 . . . . . . . . . 1 Haulers Reinforced 1 | . . . . . . . . . . . . . . . . . . . . . . . . . 1 Stealth | -11 -10 -10 -9 -9 -9 -9 -7 -7 -7 -7 -6 -6 -5 -5 -4 -4 -4 -4 -3 -3 -2 -2 -2 -2 -1 --------- Run | Scr Mat Min Mat Sto Gar Rec Fac Gar Fac Gar Fac Gar Fac Gar Fac Gar Fac Gar Res Gar Res Gar Res Gar Acc Distress Signals 15 | . 4 . . . . . 1 . 1 . . . 2 . 1 . 1 . . . . . . . 5 Communications Jammed . | . . . . . . . . . . . . . . . . . . . . . . . . . . Distress Signals . | . . . . . . . . . . . . . . . . . . . . . . . . . . Times Spotted 658 | . 23 13 14 24 27 20 31 34 7 17 . 27 73 22 78 14 50 15 2 38 1 19 22 23 64 Peak Tracking Total 9 | . 4 3 4 5 6 6 4 4 2 4 . 6 6 8 7 4 4 3 1 7 1 7 9 7 7 Tactical Retreats 45 | . 3 1 1 . 2 . 2 2 . . . 1 3 1 5 1 4 2 . 6 . . 1 3 7 Traps | -11 -10 -10 -9 -9 -9 -9 -7 -7 -7 -7 -6 -6 -5 -5 -4 -4 -4 -4 -3 -3 -2 -2 -2 -2 -1 ------- Run | Scr Mat Min Mat Sto Gar Rec Fac Gar Fac Gar Fac Gar Fac Gar Fac Gar Fac Gar Res Gar Res Gar Res Gar Acc Traps Triggered 64 | . . . . . 4 . 3 3 . 6 . 4 5 3 1 3 4 6 . 8 . 7 . 7 . Indirectly 4 | . . . . . . . . . . . . . 1 . 1 1 1 . . . . . . . . Trap Hack Attempts . | . . . . . . . . . . . . . . . . . . . . . . . . . . Triggered . | . . . . . . . . . . . . . . . . . . . . . . . . . . Disarmed . | . . . . . . . . . . . . . . . . . . . . . . . . . . Reprogrammed . | . . . . . . . . . . . . . . . . . . . . . . . . . . Reused . | . . . . . . . . . . . . . . . . . . . . . . . . . . Traps Extracted . | . . . . . . . . . . . . . . . . . . . . . . . . . . Installed . | . . . . . . . . . . . . . . . . . . . . . . . . . . Triggered 2 | . . . . . . . . . 1 . . . 1 . . . . . . . . . . . . Machines | -11 -10 -10 -9 -9 -9 -9 -7 -7 -7 -7 -6 -6 -5 -5 -4 -4 -4 -4 -3 -3 -2 -2 -2 -2 -1 ---------- Run | Scr Mat Min Mat Sto Gar Rec Fac Gar Fac Gar Fac Gar Fac Gar Fac Gar Fac Gar Res Gar Res Gar Res Gar Acc Machines Disabled 52 | . . . 2 1 2 . . 3 . 3 . 5 5 5 6 2 4 3 . 1 . 2 1 4 3 Max in Single Turn 2 | . . . . 1 1 . . 1 . 1 . 1 2 1 2 1 2 1 . 1 . 1 1 1 1 Garrison Access 3 | . . . . . . . 1 . . . . . . . . . . . 1 . . . . . 1 Garrison Relay 24 | . . . . . 2 . . 3 . 3 . 4 . 3 . 1 . 2 . 1 . 1 . 4 . Machines Sabotaged . | . . . . . . . . . . . . . . . . . . . . . . . . . . Garrisons Compromised . | . . . . . . . . . . . . . . . . . . . . . . . . . . Overloaded Fab Kills . | . . . . . . . . . . . . . . . . . . . . . . . . . . Fab Network Shutdowns 2 | . . . . . . . . . . . . . 1 . 1 . . . . . . . . . . Hacking | -11 -10 -10 -9 -9 -9 -9 -7 -7 -7 -7 -6 -6 -5 -5 -4 -4 -4 -4 -3 -3 -2 -2 -2 -2 -1 --------- Run | Scr Mat Min Mat Sto Gar Rec Fac Gar Fac Gar Fac Gar Fac Gar Fac Gar Fac Gar Res Gar Res Gar Res Gar Acc Machines Accessed 91 | . 10 1 6 8 . 7 10 . 6 . 2 . 13 . 7 . 5 . 3 . 1 . 4 . 8 Terminals 46 | . 7 1 4 6 . 2 5 . 1 . 1 . 6 . 4 . 2 . . . . . 1 . 6 Fabricators 7 | . . . . . . . 2 . 1 . . . 3 . 1 . . . . . . . . . . Repair Stations 6 | . 1 . . . . . . . 1 . . . 1 . . . 2 . . . . . . . 1 Recycling Units 13 | . 2 . 1 1 . 5 . . 1 . . . 1 . . . . . . . . . 2 . . Scanalyzers 6 | . . . 1 . . . 1 . 1 . . . 1 . 1 . . . 1 . . . . . . Garrison Access 13 | . . . . 1 . . 2 . 1 . 1 . 1 . 1 . 1 . 2 . 1 . 1 . 1 Total Hacks 220 | . 29 6 22 17 . 15 20 . 12 . 6 . 34 . 17 . 9 . 8 . 3 . 10 . 12 Successful 109 | . 19 2 11 9 . 6 13 . 8 . 4 . 11 . 6 . 5 . 5 . 1 . 4 . 5 Failed 110 | . 9 4 11 8 . 9 7 . 4 . 2 . 23 . 11 . 4 . 3 . 2 . 6 . 7 Catastrophic 20 | . 2 . . . . 1 2 . 2 . . . 4 . 4 . 2 . . . . . 1 . 2 Database Lockouts 1 | . 1 . . . . . . . . . . . . . . . . . . . . . . . . Manual 108 | . 17 6 15 10 . 6 13 . 3 . 5 . 15 . 7 . . . 3 . 2 . 1 . 5 Terminals 123 | . 21 6 15 14 . 5 13 . 2 . 4 . 17 . 9 . 3 . . . . . 5 . 9 Fabricators 17 | . . . . . . . 3 . 2 . . . 9 . 3 . . . . . . . . . . Repair Stations 13 | . 4 . . . . . . . 1 . . . 1 . . . 5 . . . . . . . 2 Recycling Units 23 | . 4 . 2 2 . 10 . . 1 . . . 1 . . . . . . . . . 3 . . Scanalyzers 19 | . . . 5 . . . 1 . 4 . . . 4 . 3 . . . 2 . . . . . . Garrison Access 25 | . . . . 1 . . 3 . 2 . 2 . 2 . 2 . 1 . 6 . 3 . 2 . 1 Terminal Hacks 31 | . 8 2 6 5 . . 4 . . . . . 2 . 1 . . . . . . . 1 . 2 Part Schematic 1 | . 1 . . . . . . . . . . . . . . . . . . . . . . . . Robot Schematic 1 | . . . . . . . 1 . . . . . . . . . . . . . . . . . . Robot Analysis 4 | . 1 2 1 . . . . . . . . . . . . . . . . . . . . . . Prototype ID Bank 4 | . 2 . 2 . . . . . . . . . . . . . . . . . . . . . . Open Door 2 | . . . . 1 . . . . . . . . . . . . . . . . . . . . 1 Level Access Points 1 | . . . . . . . . . . . . . . . . . . . . . . . . . 1 Branch Access Points 1 | . . . 1 . . . . . . . . . . . . . . . . . . . . . . Garrison Index 1 | . . . . . . . 1 . . . . . . . . . . . . . . . . . . Unreport Threat 9 | . 2 . 2 1 . . 1 . . . . . 2 . 1 . . . . . . . . . . Locate Traps 1 | . . . . . . . 1 . . . . . . . . . . . . . . . . . . Hauler Manifests 1 | . 1 . . . . . . . . . . . . . . . . . . . . . . . . Zone Layout 5 | . 1 . . 3 . . . . . . . . . . . . . . . . . . 1 . . Fabricator Hacks 10 | . . . . . . . 2 . 2 . . . 4 . 2 . . . . . . . . . . Load Schematic 4 | . . . . . . . 1 . 1 . . . 1 . 1 . . . . . . . . . . Build 6 | . . . . . . . 1 . 1 . . . 3 . 1 . . . . . . . . . . Repair Station Hacks 8 | . 3 . . . . . . . . . . . . . . . 4 . . . . . . . 1 Scan Component 5 | . 2 . . . . . . . . . . . . . . . 2 . . . . . . . 1 Repair 3 | . 1 . . . . . . . . . . . . . . . 2 . . . . . . . . Recycling Unit Hacks 12 | . 2 . 1 1 . 4 . . 1 . . . 1 . . . . . . . . . 2 . . Retrieve Components 12 | . 2 . 1 1 . 4 . . 1 . . . 1 . . . . . . . . . 2 . . Scanalyzer 9 | . . . 4 . . . . . 3 . . . . . 1 . . . 1 . . . . . . Insert Component 6 | . . . 2 . . . . . 2 . . . . . 1 . . . 1 . . . . . . Analyze 3 | . . . 2 . . . . . 1 . . . . . . . . . . . . . . . . Garrison Access Hacks 14 | . . . . 1 . . 2 . 1 . 1 . 1 . 1 . 1 . 3 . 1 . 1 . 1 Unlock Access 10 | . . . . 1 . . 1 . 1 . 1 . 1 . 1 . 1 . 1 . 1 . 1 . . Seal Access 3 | . . . . . . . 1 . . . . . . . . . . . 1 . . . . . 1 Coupler Status 1 | . . . . . . . . . . . . . . . . . . . 1 . . . . . . Unauthorized Hacks 25 | . 6 . . 2 . 2 5 . 1 . 3 . 3 . 1 . . . 1 . . . . . 1 Terminals 17 | . 4 . . 2 . 1 4 . 1 . 2 . 2 . . . . . . . . . . . 1 Track 2 | . 1 . . . . . . . . . . . . . . . . . . . . . . . 1 Assimilate 1 | . . . . . . . 1 . . . . . . . . . . . . . . . . . . Botnet 9 | . 1 . . 1 . 1 2 . 1 . 1 . 2 . . . . . . . . . . . . Disrupt 2 | . 2 . . . . . . . . . . . . . . . . . . . . . . . . Operators 3 | . . . . 1 . . 1 . . . 1 . . . . . . . . . . . . . . Fabricators 2 | . . . . . . . . . . . . . 1 . 1 . . . . . . . . . . Siphon 2 | . . . . . . . . . . . . . 1 . 1 . . . . . . . . . . Repair Stations . | . . . . . . . . . . . . . . . . . . . . . . . . . . Recycling Units 3 | . 2 . . . . 1 . . . . . . . . . . . . . . . . . . . Tunnel 3 | . 2 . . . . 1 . . . . . . . . . . . . . . . . . . . Scanalyzers . | . . . . . . . . . . . . . . . . . . . . . . . . . . Garrison Access 3 | . . . . . . . 1 . . . 1 . . . . . . . 1 . . . . . . Reprogram 3 | . . . . . . . 1 . . . 1 . . . . . . . 1 . . . . . . Data Cores Recovered 1 | . . . . . . . . . . . . . . . . . 1 . . . . . . . . Used . | . . . . . . . . . . . . . . . . . . . . . . . . . . Hacking Detections 76 | . 7 1 6 6 . 3 8 . 5 . 2 . 12 . 7 . 5 . 3 . 1 . 4 . 6 Full Trace Events 10 | . . . . . . 2 . . . . . . 1 . 3 . . . . . 1 . 1 . 2 Feedback Events 1 | . . . . . . . . . . . . . . . . . . . . . . . . . 1 Corruption 1 | . . . . . . . . . . . . . . . . . . . . . . . . . 1 Feedback Blocked . | . . . . . . . . . . . . . . . . . . . . . . . . . . Robot Schematics Acquired 1 | . . . . . . . 1 . . . . . . . . . . . . . . . . . . Robots Built 12 | . . . . . . . 2 . 2 . . . 6 . 2 . . . . . . . . . . Matter 1389 | . . . . . . . 252 . 252 . . . 696 . 189 . . . . . . . . . . Time 705 | . . . . . . . 67 . 67 . . . 437 . 134 . . . . . . . . . . Total Robot Build Rating 52 | . . . . . . . 8 . 8 . . . 28 . 8 . . . . . . . . . . Part Schematics Acquired 4 | . 1 . 2 . . . . . 1 . . . . . . . . . . . . . . . . Parts Built . | . . . . . . . . . . . . . . . . . . . . . . . . . . Matter . | . . . . . . . . . . . . . . . . . . . . . . . . . . Time . | . . . . . . . . . . . . . . . . . . . . . . . . . . Total Part Build Rating . | . . . . . . . . . . . . . . . . . . . . . . . . . . Parts Repaired 3 | . 1 . . . . . . . . . . . . . . . 2 . . . . . . . . Time 73 | . 26 . . . . . . . . . . . . . . . 47 . . . . . . . . Parts Recycled . | . . . . . . . . . . . . . . . . . . . . . . . . . . Recycled Matter . | . . . . . . . . . . . . . . . . . . . . . . . . . . Retrieved Matter . | . . . . . . . . . . . . . . . . . . . . . . . . . . Retrieved Components 38 | . 12 . 10 . . 6 . . 3 . . . 2 . . . . . . . . . 5 . . Parts Scanalyzed 6 | . . . 2 . . . . . 2 . . . . . 1 . . . 1 . . . . . . Part Schematics Acquired 3 | . . . 2 . . . . . 1 . . . . . . . . . . . . . . . . Parts Damaged . | . . . . . . . . . . . . . . . . . . . . . . . . . . Bothacking | -11 -10 -10 -9 -9 -9 -9 -7 -7 -7 -7 -6 -6 -5 -5 -4 -4 -4 -4 -3 -3 -2 -2 -2 -2 -1 ------------ Run | Scr Mat Min Mat Sto Gar Rec Fac Gar Fac Gar Fac Gar Fac Gar Fac Gar Fac Gar Res Gar Res Gar Res Gar Acc Used RIF Installer 10 | . . . . . 1 . . 1 . 1 . 1 . 1 . 1 . 1 . 1 . 1 . 1 . Hotswap 1 | . . . . . . . . . . . . . . 1 . . . . . . . . . . . Threat Obfuscator 2 | . . . . . . . . . . . . . . . . . . 1 . 1 . . . . . Zone Cloak 1 | . . . . . . . . . . 1 . . . . . . . . . . . . . . . Watcher Feeds 1 | . . . . . . . . 1 . . . . . . . . . . . . . . . . . Structural Interface 1 | . . . . . . . . . . . . 1 . . . . . . . . . . . . . Program Shield 1 | . . . . . . . . . . . . . . . . 1 . . . . . . . . . Autoassimilate 2 | . . . . . . . . . . . . . . . . . . . . . . 1 . 1 . Robots Hacked 112 | . . . . . . . 11 1 . 4 1 5 16 4 14 4 16 1 . 10 . . 4 1 20 Non-combat 20 | . . . . . . . 2 . . . 1 . 4 . 3 . 2 . . . . . 3 . 5 Combat 92 | . . . . . . . 9 1 . 4 . 5 12 4 11 4 14 1 . 10 . . 1 1 15 Autoassimilated 9 | . . . . . . . . . . . . . . . . . . . . . . . 1 1 7 Robot Hacks Applied 127 | . . . . . . . 18 1 . 5 1 5 20 4 19 5 19 1 . 10 . . 3 . 16 parse_system 4 | . . . . . . . 1 . . . . . 1 . 1 1 . . . . . . . . . drop_inventory 9 | . . . . . . . 1 . . . . . 2 . . . 1 . . . . . 2 . 3 ignore_parts 1 | . . . . . . . . . . . . . . . . . . . . . . . 1 . . purge_threat 17 | . . . . . . . 6 . . . . . 2 . 4 . 2 . . . . . . . 3 summon_haulers 1 | . . . . . . . . . . . . . . . . . 1 . . . . . . . . map_route 1 | . . . . . . . . . . . . . . . . . . . . . . . . . 1 find_garrison 1 | . . . . . . . . . . . . . 1 . . . . . . . . . . . . scatter_targeting 1 | . . . . . . . . . . . . . . . 1 . . . . . . . . . . overload_power 3 | . . . . . . . . . . . . . 1 . . . 1 . . 1 . . . . . amplify_resonance 3 | . . . . . . . . . . . . . . . 1 . 1 . . 1 . . . . . wipe_record 1 | . . . . . . . . . . . . . . . . . 1 . . . . . . . . reboot_system 14 | . . . . . . . 1 . . . . 2 3 1 4 . 2 . . 1 . . . . . go_dormant 1 | . . . . . . . . . . . . . 1 . . . . . . . . . . . . overwrite_iff 16 | . . . . . . . 5 . . . . . 2 . 3 1 2 . . 2 . . . . 1 streamctrl_low 3 | . . . . . . . . . . . 1 . 2 . . . . . . . . . . . . streamctrl_high 14 | . . . . . . . 2 1 . 5 . 3 . 1 1 . 1 . . . . . . . . formatsys_low 4 | . . . . . . . . . . . . . . . 3 . . . . . . . . . 1 formatsys_high 33 | . . . . . . . 2 . . . . . 5 2 1 3 7 1 . 5 . . . . 7 Relay Couplers Released 97 | . . . . . 8 . . 10 . 13 . 14 . 13 . 4 . 7 1 7 . 3 . 17 . Machine Destruction 94 | . . . . . 8 . . 10 . 13 . 14 . 13 . 4 . 7 1 4 . 3 . 17 . Programmers 3 | . . . . . . . . . . . . . . . . . . . . 3 . . . . . Attached 58 | . . . . . . . 7 1 . 3 1 4 8 3 6 4 4 . 3 4 . . . 4 6 Robots Rewired 3 | . . . . . . . . . . . . . . . . 1 1 . . . . . 1 . . Allies Hacked 7 | . . . . . . . . 2 1 . . . 2 . 2 . . . . . . . . . . Hacks Repelled 3 | . . . . . . . . . 1 . . . 1 . 1 . . . . . . . . . . Allies | -11 -10 -10 -9 -9 -9 -9 -7 -7 -7 -7 -6 -6 -5 -5 -4 -4 -4 -4 -3 -3 -2 -2 -2 -2 -1 -------- Run | Scr Mat Min Mat Sto Gar Rec Fac Gar Fac Gar Fac Gar Fac Gar Fac Gar Fac Gar Res Gar Res Gar Res Gar Acc Total Allies 101 | . . 3 . . . . 11 3 2 4 1 3 15 3 12 5 11 1 1 7 . . 2 1 16 Largest Group 7 | . . 3 3 . . . 4 5 4 5 6 6 7 2 5 2 2 1 1 3 . . 1 1 4 Highest-Rated Group 273 | . . 40 40 . . . 118 134 92 172 196 195 273 81 153 115 98 49 91 124 . . 64 64 249 Highest-Rated Ally 115 | . . 16 16 . . . 38 38 38 38 38 38 49 81 58 115 56 49 91 91 . . 64 64 69 Total Orders 35 | . . . . . . . 1 6 3 4 3 9 . . 7 2 . . . . . . . . . STAY 18 | . . . . . . . 1 4 2 3 1 3 . . 3 1 . . . . . . . . . FOLLOW 13 | . . . . . . . . 2 1 1 1 6 . . 1 1 . . . . . . . . . AID 3 | . . . . . . . . . . . . . . . 3 . . . . . . . . . . DROP 1 | . . . . . . . . . . . 1 . . . . . . . . . . . . . . Ally Attacks 553 | . . 10 18 . . . 28 60 18 26 4 24 119 29 53 21 31 5 . 26 . . 4 1 76 Total Damage 15372 | . . 105 169 . . . 374 1520 489 930 82 728 3377 1043 1245 787 669 216 . 618 . . 210 54 2756 Kills 107 | . . 4 4 . . . 2 13 6 7 1 4 23 9 12 4 3 . . 2 . . . . 13 Allies Corrupted 5 | . . . . . . . . . . . . . . . 1 . 1 . . . . . . . 3 Allies Melted . | . . . . . . . . . . . . . . . . . . . . . . . . . . Intel | -11 -10 -10 -9 -9 -9 -9 -7 -7 -7 -7 -6 -6 -5 -5 -4 -4 -4 -4 -3 -3 -2 -2 -2 -2 -1 ------- Run | Scr Mat Min Mat Sto Gar Rec Fac Gar Fac Gar Fac Gar Fac Gar Fac Gar Fac Gar Res Gar Res Gar Res Gar Acc Robot Analysis Total 4 | . 1 2 1 . . . . . . . . . . . . . . . . . . . . . . Derelict Logs Recovered 3 | . . 3 . . . . . . . . . . . . . . . . . . . . . . . Drone Launches 3 | . . . . . . . . . . . . . . . . . . 3 . . . . . . . Drone Recoveries 3 | . . . . . . . . . . . . . . . . . . 3 . . . . . . . Exploration | -11 -10 -10 -9 -9 -9 -9 -7 -7 -7 -7 -6 -6 -5 -5 -4 -4 -4 -4 -3 -3 -2 -2 -2 -2 -1 ------------- Run | Scr Mat Min Mat Sto Gar Rec Fac Gar Fac Gar Fac Gar Fac Gar Fac Gar Fac Gar Res Gar Res Gar Res Gar Acc Turns Passed 34002 | 133 928 876 705 1084 1339 354 1415 1566 904 1732 218 2439 3087 1081 2871 1028 2454 1125 471 1990 88 1436 699 1654 2325 Spaces Moved 14613 | 60 417 454 304 453 602 166 654 847 573 796 138 1263 1459 559 1124 428 933 355 184 509 46 471 320 722 776 Core 5 | 5 . . . . . . . . . . . . . . . . . . . . . . . . . Treads 8177 | 55 417 414 304 453 602 166 258 274 . . . . . . 592 326 933 355 184 509 46 471 320 722 776 Legs 93 | . . . . . . . . . . . . . . . . 93 . . . . . . . . . Wheels 6338 | . . 40 . . . . 396 573 573 796 138 1263 1459 559 532 9 . . . . . . . . . Hover . | . . . . . . . . . . . . . . . . . . . . . . . . . . Flight . | . . . . . . . . . . . . . . . . . . . . . . . . . . Fastest Speed 50 | 50 160 150 180 180 180 200 150 125 125 130 130 140 135 160 135 200 200 200 200 180 185 165 165 185 170 Average Speed 172 | 150 169 177 180 180 191 200 167 155 130 133 137 140 168 163 184 209 200 200 200 187 186 183 169 201 171 Slowest Speed 250 | 160 180 180 220 180 200 200 200 200 140 150 140 140 250 170 220 240 200 200 200 200 192 192 192 205 190 Overloaded Moves . | . . . . . . . . . . . . . . . . . . . . . . . . . . Propulsion Burnouts . | . . . . . . . . . . . . . . . . . . . . . . . . . . Robots Hopped . | . . . . . . . . . . . . . . . . . . . . . . . . . . Cave-ins Triggered . | . . . . . . . . . . . . . . . . . . . . . . . . . . Exploration Rate (%) 48 | 5 63 91 30 81 77 54 18 83 20 67 3 98 40 84 33 66 19 56 4 78 2 76 12 89 16 Regions Visited 25 Branch Regions 3 Pre-discovered Areas 4 | . 2 1 . . . 1 . . . . . . . . . . . . . . . . . . . Known Exits Taken 11 | . . . 1 1 . . 1 . 1 . 1 . 1 . 1 . 1 . 1 . 1 . 1 . . Unknown Exits Taken 4 | 1 1 1 . . . 1 . . . . . . . . . . . . . . . . . . . Scrap Searched 3 | . . 3 . . . . . . . . . . . . . . . . . . . . . . . Spaces Dug 50 | . . . 2 7 . 1 3 . . . . . 3 . 5 . 3 . . . . 24 1 1 . Terrain Destroyed 626 | . . . 2 7 39 1 3 30 . 2 . . 86 33 99 3 7 20 . 14 . 86 1 103 90 Melee 10 | . . . 2 . . 1 3 . . . . . 1 . . . 3 . . . . . . . . Projectile 94 | . . . . . . . . . . 2 . . 21 . 18 3 4 8 . 14 . 11 1 3 9 AOE 522 | . . . . 7 39 . . 30 . . . . 64 33 81 . . 12 . . . 75 . 100 81 Terrain Rammed . | . . . . . . . . . . . . . . . . . . . . . . . . . . Walls Destroyed . | . . . . . . . . . . . . . . . . . . . . . . . . . . Machines Disabled . | . . . . . . . . . . . . . . . . . . . . . . . . . . Actions | -11 -10 -10 -9 -9 -9 -9 -7 -7 -7 -7 -6 -6 -5 -5 -4 -4 -4 -4 -3 -3 -2 -2 -2 -2 -1 --------- Run | Scr Mat Min Mat Sto Gar Rec Fac Gar Fac Gar Fac Gar Fac Gar Fac Gar Fac Gar Res Gar Res Gar Res Gar Acc Total 21615 | 81 561 496 394 625 736 183 872 986 707 1376 166 1837 1927 697 1677 521 1364 656 238 1486 49 1032 468 916 1564 Wait 4110 | 2 78 16 28 77 65 1 91 28 75 434 9 453 258 55 264 30 223 193 9 766 . 418 45 42 450 Move 14591 | 59 416 453 303 453 601 165 653 846 572 795 137 1262 1458 558 1124 427 933 354 183 508 45 470 320 721 775 Hop . | . . . . . . . . . . . . . . . . . . . . . . . . . . Pick Up 275 | 4 15 5 9 10 13 3 10 14 12 12 . 14 24 13 25 8 12 15 4 14 1 8 4 15 11 Fast Attach 115 | 7 2 1 1 4 . 1 6 2 5 2 5 . 8 1 12 2 18 3 1 5 . 4 7 5 13 Attach 139 | . 1 1 6 2 3 . 12 9 . . 2 1 12 8 23 2 10 4 2 11 1 10 . 3 16 Detach 50 | . . 1 . . . . 1 2 4 1 5 . 3 . 8 3 4 1 . 5 . 3 . 4 5 Swap 328 | . 3 2 3 10 9 2 19 12 4 19 2 13 36 11 42 10 38 9 8 14 1 3 12 12 34 Drop 191 | . 4 2 4 16 7 4 6 1 16 13 4 1 15 . 13 . 14 8 4 6 1 7 14 15 16 Fire 1418 | 9 38 15 35 51 30 . 28 62 19 46 2 61 105 24 106 33 80 61 5 135 . 94 58 91 230 Melee 163 | . . . 2 . . 1 34 2 . 9 . . 5 1 57 . 30 . 22 . . . . . . Ram . | . . . . . . . . . . . . . . . . . . . . . . . . . . Kick . | . . . . . . . . . . . . . . . . . . . . . . . . . . Crush 39 | . 4 . 3 2 . 6 2 . . . . . . . . . . . . 1 . 1 7 2 11 Escape Stasis 170 | . . . . . 8 . 8 6 . 45 . 32 . 24 . 4 . 8 . 15 . 14 . 6 . Rewire 26 | . . . . . . . 2 2 . . . . 3 2 3 2 2 . . 6 . . 1 . 3 Trap . | . . . . . . . . . . . . . . . . . . . . . . . . . . Miscellaneous . | . . . . . . . . . . . . . . . . . . . . . . . . . . Route ------- -11/Scrapyard -10/Materials (discovered 3 exits: *Mat x2 / *Min) -10/Mines (discovered 2 exits: *Mat x2) -9/Materials (discovered 4 exits: [*Mat] / Min / *Sto x2) -9/Storage (discovered 3 exits: [*Mat] / *Rec / Gar) -9/Garrison (discovered 3 exits: *Rec x3) -9/Recycling -7/Factory (discovered 2 exits: [*Low] / Gar) -7/Garrison (discovered 3 exits: *Fac x3) -7/Factory (discovered 2 exits: [*Low] / Gar) -7/Garrison (discovered 2 exits: *Fac x2) -6/Factory -6/Garrison (discovered 3 exits: *Fac x3) -5/Factory (discovered 4 exits: *Fac x2 / [*Upp] / Gar) -5/Garrison (discovered 3 exits: *Fac x3) -4/Factory (discovered 2 exits: *Res / Gar) -4/Garrison (discovered 3 exits: *Fac x3) -4/Factory (discovered 2 exits: *Upp / Gar) -4/Garrison -3/Research -3/Garrison (discovered 3 exits: *Res x3) -2/Research -2/Garrison (discovered 3 exits: *Res x3) -2/Research -2/Garrison (discovered 3 exits: *Acc x3) -1/Access To Epsilon Eridani History --------- Turn | Location | Event 73 | -11/Scrapyard | Discovered new exit (range 16) 134 | -11/Scrapyard | Entered Materials 195 | -10/Materials | Central database locked down 310 | -10/Materials | Build established: Mutant 451 | -10/Materials | Discovered new exit (range 3) 661 | -10/Materials | Repaired Lgt. Treads 795 | -10/Materials | Discovered new exit (range 10) 923 | -10/Materials | Build established: Hauler-Mutant 946 | -10/Materials | Discovered new exit (range 10) 1062 | -10/Materials | Entered Mines 1114 | -10/Mines | Destroyed 7 combat bots 1119 | -10/Mines | Discovered new exit (range 14) 1159 | -10/Mines | Joined a pair of Derelicts in attacking an 0b10 outpost 1248 | -10/Mines | Learned location of 1 exit from Materials 1302 | -10/Mines | Learned location of Storage (-9) 1322 | -10/Mines | Discovered new exit (range 14) 1347 | -10/Mines | Assisted by bots powering up and referring to "LRC-V3" 1850 | -10/Mines | Learned Materials stockpile data 1938 | -10/Mines | Entered Materials 1938 | -9/Materials | Accompanied by 3 allies 1938 | -9/Materials | Evolved 2 slots: Utility x2 1939 | -9/Materials | Identified exit to Mines 2346 | -9/Materials | Lost 4 parts (1n2u1w) 2373 | -9/Materials | Discovered new exit (range 8) 2398 | -9/Materials | Identified exit to Storage 2643 | -9/Materials | Entered Storage 3152 | -9/Storage | Core integrity fell below 50% 3183 | -9/Storage | Used back door to open Recycling access 3183 | -9/Storage | Discovered new exit (range 5) 3490 | -9/Storage | Discovered new exit (range 14) 3727 | -9/Storage | Identified exit to Garrison 3727 | -9/Storage | Entered Garrison 3819 | -9/Garrison | Triggered checkpoint 3867 | -9/Garrison | Destroyed 13 combat bots 3940 | -9/Garrison | Discovered new exit (range 15) 4000 | -9/Garrison | Triggered checkpoint 4131 | -9/Garrison | Discovered new exit (range 9) 4220 | -9/Garrison | Triggered checkpoint 4293 | -9/Garrison | Discovered new exit (range 14) 4333 | -9/Garrison | Installed Relay Interface Framework 4386 | -9/Garrison | Triggered checkpoint 4453 | -9/Garrison | Garrison Relay disabled 4628 | -9/Garrison | Triggered checkpoint 4638 | -9/Garrison | Core integrity fell below 20% 4740 | -9/Garrison | Garrison Relay disabled 5048 | -9/Garrison | Build established: Bothacker-Mutant 5066 | -9/Garrison | Entered Recycling 5106 | -9/Recycling | Spotter reported a threat 5143 | -9/Recycling | Spotter reported a threat 5155 | -9/Recycling | Spotter reported a threat 5155 | -9/Recycling | Spotter reported a threat 5176 | -9/Recycling | Spotter reported a threat 5177 | -9/Recycling | Spotter reported a threat 5181 | -9/Recycling | Spotter reported a threat 5206 | -9/Recycling | Spotter reported a threat 5208 | -9/Recycling | Spotter reported a threat 5222 | -9/Recycling | Spotter reported a threat 5229 | -9/Recycling | Spotter reported a threat 5231 | -9/Recycling | Spotter reported a threat 5234 | -9/Recycling | Spotter reported a threat 5243 | -9/Recycling | Spotter reported a threat 5275 | -9/Recycling | Spotter reported a threat 5298 | -9/Recycling | Spotter reported a threat 5299 | -9/Recycling | Spotter reported a threat 5312 | -9/Recycling | Spotter reported a threat 5319 | -9/Recycling | Spotter reported a threat 5322 | -9/Recycling | Spotter reported a threat 5325 | -9/Recycling | Spotter reported a threat 5330 | -9/Recycling | Spotter reported a threat 5331 | -9/Recycling | Spotter reported a threat 5372 | -9/Recycling | Spotter reported a threat 5378 | -9/Recycling | Spotter reported a threat 5382 | -9/Recycling | Discovered new exit (range 15) 5385 | -9/Recycling | Spotter reported a threat 5395 | -9/Recycling | Spotter reported a threat 5420 | -9/Recycling | Entered Factory 5420 | -7/Factory | Evolved 4 slots: Propulsion x1, Utility x3 5744 | -7/Factory | Discovered new exit (range 7) 6406 | -7/Factory | Build established: Hauler-Mutant 6758 | -7/Factory | Identified exit to Garrison 6793 | -7/Factory | Fabricated P-60 Hacker? 6835 | -7/Factory | Entered Garrison 6835 | -7/Garrison | Accompanied by 4 allies 7024 | -7/Garrison | Triggered checkpoint 7036 | -7/Garrison | Hacker 4b assimilated hostile G-47 Trooper 7057 | -7/Garrison | Triggered checkpoint 7081 | -7/Garrison | Lost 6 parts (4n1u1w) 7116 | -7/Garrison | Discovered new exit (range 13) 7298 | -7/Garrison | Discovered new exit (range 15) 7417 | -7/Garrison | Triggered checkpoint 7570 | -7/Garrison | Discovered new exit (range 12) 7590 | -7/Garrison | Expanded RIF knowledge: Patrol Navigation 7638 | -7/Garrison | Triggered checkpoint 7665 | -7/Garrison | Garrison Relay disabled 7763 | -7/Garrison | Triggered checkpoint 7880 | -7/Garrison | Triggered checkpoint 7900 | -7/Garrison | Hacker 4b assimilated hostile S-27 Virus 7932 | -7/Garrison | Garrison Relay disabled 8136 | -7/Garrison | Triggered checkpoint 8181 | -7/Garrison | Garrison Relay disabled 8233 | -7/Garrison | Build established: Bothacker-Mutant 8401 | -7/Garrison | Entered Factory 8401 | -7/Factory | Accompanied by 4 allies 8743 | -7/Factory | Discovered new exit (range 7) 8996 | -7/Factory | P-60 Hacker assimilated allied Guardian 4a 9221 | -7/Factory | Identified exit to Garrison 9300 | -7/Factory | Fabricated P-60 Hacker? 9305 | -7/Factory | Entered Garrison 9305 | -7/Garrison | Accompanied by 2 allies 9405 | -7/Garrison | Triggered checkpoint 9608 | -7/Garrison | Triggered checkpoint 9729 | -7/Garrison | Garrison Relay disabled 9809 | -7/Garrison | Core integrity fell below 50% 9973 | -7/Garrison | Discovered new exit (range 15) 10240 | -7/Garrison | Triggered checkpoint 10501 | -7/Garrison | Triggered checkpoint 10570 | -7/Garrison | Triggered checkpoint 10598 | -7/Garrison | Discovered new exit (range 13) 10622 | -7/Garrison | Expanded RIF knowledge: Zone Cloak 10729 | -7/Garrison | Garrison Relay disabled 10860 | -7/Garrison | Triggered checkpoint 10883 | -7/Garrison | Garrison Relay disabled 11037 | -7/Garrison | Entered Factory 11037 | -6/Factory | Accompanied by 5 allies 11037 | -6/Factory | Evolved 2 slots: Utility x2 11202 | -6/Factory | Identified exit to Garrison 11255 | -6/Factory | Entered Garrison 11255 | -6/Garrison | Accompanied by 6 allies 11428 | -6/Garrison | Triggered checkpoint 11512 | -6/Garrison | Triggered checkpoint 11806 | -6/Garrison | Discovered new exit (range 15) 12019 | -6/Garrison | Discovered new exit (range 9) 12043 | -6/Garrison | Expanded RIF knowledge: Structural Interface 12122 | -6/Garrison | Triggered checkpoint 12337 | -6/Garrison | Build established: Botlord-Mutant 12654 | -6/Garrison | Garrison Relay disabled 12821 | -6/Garrison | Triggered checkpoint 12872 | -6/Garrison | Garrison Relay disabled 12988 | -6/Garrison | Triggered checkpoint 13330 | -6/Garrison | Triggered checkpoint 13444 | -6/Garrison | Discovered new exit (range 5) 13476 | -6/Garrison | Triggered checkpoint 13539 | -6/Garrison | Garrison Relay disabled 13694 | -6/Garrison | Entered Factory 13694 | -5/Factory | Accompanied by 3 allies 13694 | -5/Factory | Evolved 2 slots: Utility x2 13972 | -5/Factory | Spotted B-75 Beast 14294 | -5/Factory | First assault squad dispatched 14629 | -5/Factory | Discovered new exit (range 9) 14842 | -5/Factory | P-70 Sage assimilated allied Sentinel 6a 15443 | -5/Factory | Fabricated P-60 Hacker? 15553 | -5/Factory | Fabricated Y-64 Sentinel? 15614 | -5/Factory | Fabricated P-60 Hacker (x2) 15791 | -5/Factory | Local fabrication network quarantined 16064 | -5/Factory | Discovered new exit (range 13) 16317 | -5/Factory | Discovered new exit (range 15) 16771 | -5/Factory | Identified exit to Garrison 16781 | -5/Factory | Entered Garrison 16863 | -5/Garrison | Spotted B-75 Beast 16868 | -5/Garrison | Triggered checkpoint 16876 | -5/Garrison | Triggered checkpoint 16880 | -5/Garrison | Hijacked Beast 6a control node with streamctrl_high 16909 | -5/Garrison | Triggered checkpoint 16919 | -5/Garrison | Triggered checkpoint 16935 | -5/Garrison | Destroyed 7 combat bots 16946 | -5/Garrison | Lost 4 parts (1n1u2w) 17056 | -5/Garrison | Discovered new exit (range 10) 17251 | -5/Garrison | Discovered new exit (range 8) 17430 | -5/Garrison | Discovered new exit (range 8) 17450 | -5/Garrison | Expanded RIF knowledge: Hotswap 17524 | -5/Garrison | Garrison Relay disabled 17672 | -5/Garrison | Garrison Relay disabled 17812 | -5/Garrison | Garrison Relay disabled 17861 | -5/Garrison | Identified exit to Factory 17862 | -5/Garrison | Entered Factory 17862 | -4/Factory | Evolved 2 slots: Power x1, Utility x1 18112 | -4/Factory | First assault squad dispatched 19167 | -4/Factory | Local fabrication network quarantined 19228 | -4/Factory | Fabricated P-60 Hacker? 19448 | -4/Factory | Hacker 7a assimilated hostile G-67 Veteran 19618 | -4/Factory | P-70 Sage assimilated allied Smith 7a 19626 | -4/Factory | Hacker 7a assimilated hostile S-27 Virus 19773 | -4/Factory | Discovered new exit (range 11) 19899 | -4/Factory | Identified exit to Research 20523 | -4/Factory | Lost 3 parts (1n1u1w) 20538 | -4/Factory | P-70 Sage assimilated allied Enforcer 7a 20666 | -4/Factory | Garrison activated, responded to threat 20733 | -4/Factory | Identified exit to Garrison 20733 | -4/Factory | Entered Garrison 20744 | -4/Garrison | Expanded RIF knowledge: Program Shield 20804 | -4/Garrison | Triggered checkpoint 20981 | -4/Garrison | Spotted B-86 Titan 21003 | -4/Garrison | Assimilated Titan 7a with formatsys_high 21024 | -4/Garrison | Triggered checkpoint 21024 | -4/Garrison | Destroyed Titan 7a 21054 | -4/Garrison | Triggered checkpoint 21068 | -4/Garrison | Triggered checkpoint 21205 | -4/Garrison | Discovered new exit (range 15) 21411 | -4/Garrison | Discovered new exit (range 13) 21626 | -4/Garrison | Discovered new exit (range 9) 21640 | -4/Garrison | Identified exit to Factory 21684 | -4/Garrison | Garrison Relay disabled 21761 | -4/Garrison | Entered Factory 21761 | -4/Factory | Accompanied by 2 allies 22373 | -4/Factory | Lost 3 parts (1p1u1w) 22608 | -4/Factory | Repaired Imp. Propulsion Shielding 22718 | -4/Factory | Repaired Enh. Gauss Cannon 23242 | -4/Factory | Lost 3 parts (3u) 23276 | -4/Factory | Discovered new exit (range 9) 23296 | -4/Factory | Identified exit to Upper Caves 24161 | -4/Factory | Garrison activated, responded to threat 24215 | -4/Factory | Identified exit to Garrison 24215 | -4/Factory | Entered Garrison 24215 | -4/Garrison | Accompanied by 1 ally 24244 | -4/Garrison | Triggered checkpoint 24327 | -4/Garrison | Garrison Relay disabled 24416 | -4/Garrison | Spotted B-86 Titan 24747 | -4/Garrison | Core integrity fell below 50% 24889 | -4/Garrison | Destroyed B-86 Titan 24900 | -4/Garrison | Triggered checkpoint 24940 | -4/Garrison | Triggered checkpoint 25008 | -4/Garrison | Discovered exit to Research (range 11) 25040 | -4/Garrison | Expanded RIF knowledge: Threat Obfuscation 25095 | -4/Garrison | Triggered checkpoint 25194 | -4/Garrison | Garrison Relay disabled 25276 | -4/Garrison | Found Quantum Capacitor 25340 | -4/Garrison | Entered Research 25340 | -3/Research | Evolved 2 slots: Utility x2 25362 | -3/Research | Identified exit to Garrison 25695 | -3/Research | Found Prototype Device 25733 | -3/Research | Identified EM Dispersion Field 25766 | -3/Research | Found EM Dispersion Field 25811 | -3/Research | Entered Garrison 25811 | -3/Garrison | Accompanied by 1 ally 25821 | -3/Garrison | Expanded RIF knowledge: Threat Obfuscation 25880 | -3/Garrison | Triggered checkpoint 25891 | -3/Garrison | Garrison Relay disabled 25953 | -3/Garrison | Lost 8 parts (1p1n3u3w) 26159 | -3/Garrison | Spotted B-86 Titan 26760 | -3/Garrison | Triggered checkpoint 27195 | -3/Garrison | Found Adv. Powered Armor 27198 | -3/Garrison | Found Adv. Powered Armor 27203 | -3/Garrison | Found Adv. Powered Armor 27208 | -3/Garrison | Found Adv. Powered Armor 27252 | -3/Garrison | Discovered new exit (range 11) 27434 | -3/Garrison | Destroyed B-86 Titan 27458 | -3/Garrison | Triggered checkpoint 27541 | -3/Garrison | Discovered new exit (range 12) 27562 | -3/Garrison | Identified exit to Research 27622 | -3/Garrison | Triggered checkpoint 27698 | -3/Garrison | Destroyed 7 combat bots 27776 | -3/Garrison | Discovered exit to Research (range 9) 27801 | -3/Garrison | Entered Research 27801 | -2/Research | Evolved 2 slots: Utility x2 27876 | -2/Research | Identified exit to Garrison 27881 | -2/Research | Spotted B-90 Cyclops 27889 | -2/Research | Entered Garrison 28354 | -2/Garrison | Triggered checkpoint 28355 | -2/Garrison | Triggered checkpoint 28425 | -2/Garrison | Lost 3 parts (3u) 28428 | -2/Garrison | Destroyed 7 combat bots 28487 | -2/Garrison | Discovered new exit (range 12) 28505 | -2/Garrison | Identified exit to Research 28627 | -2/Garrison | Triggered checkpoint 28776 | -2/Garrison | Discovered exit to Research (range 14) 29025 | -2/Garrison | Discovered exit to Research (range 14) 29114 | -2/Garrison | Expanded RIF knowledge: Autoassimilate 29211 | -2/Garrison | Triggered checkpoint 29251 | -2/Garrison | Garrison Relay disabled 29325 | -2/Garrison | Entered Research 29691 | -2/Research | Spotted B-90 Cyclops 29938 | -2/Research | Destroyed 7 combat bots 29987 | -2/Research | Found Fusion Bomb Launcher 30024 | -2/Research | Identified exit to Garrison 30024 | -2/Research | Entered Garrison 30088 | -2/Garrison | Spotted B-90 Cyclops 30252 | -2/Garrison | Destroyed B-90 Cyclops 30303 | -2/Garrison | Lost 3 parts (1u2w) 30328 | -2/Garrison | Triggered checkpoint 30424 | -2/Garrison | Destroyed 12 combat bots 30536 | -2/Garrison | Discovered new exit (range 9) 30758 | -2/Garrison | Triggered checkpoint 30864 | -2/Garrison | Triggered checkpoint 30869 | -2/Garrison | Discovered new exit (range 10) 30886 | -2/Garrison | Identified exit to Access 30898 | -2/Garrison | Expanded RIF knowledge: Autoassimilate 31011 | -2/Garrison | Garrison Relay disabled 31016 | -2/Garrison | Triggered checkpoint 31148 | -2/Garrison | Discovered exit to Access (range 13) 31236 | -2/Garrison | Triggered checkpoint 31268 | -2/Garrison | Garrison Relay disabled 31440 | -2/Garrison | Triggered checkpoint 31467 | -2/Garrison | Garrison Relay disabled 31612 | -2/Garrison | Triggered checkpoint 31622 | -2/Garrison | Garrison Relay disabled 31678 | -2/Garrison | Entered Access 31678 | -1/Access | Accompanied by 1 ally 31678 | -1/Access | Evolved 2 slots: Propulsion x1, Utility x1 32021 | -1/Access | Identified exit to Surface 32068 | -1/Access | Found Fusion Bomb Launcher 33147 | -1/Access | Spotted B-99 Colossus 33259 | -1/Access | Lost 3 parts (1n2u) 33330 | -1/Access | Spotted B-99 Colossus 33375 | -1/Access | Destroyed B-99 Colossus 33381 | -1/Access | Lost 10 parts (3p2n2u3w) 33434 | -1/Access | Found Hvy. Insulated Plating 33461 | -1/Access | Lost 3 parts (1p1n1u) 33466 | -1/Access | Destroyed B-99 Colossus 34003 | *** | Escaped! Last Messages --------------- 33948_ OCS0,6 D|TOM YWAATB0 6VVUVHWLZWK 33948_ K-01 Serf collects debris. 33971_ R-10 Processor collects Adv. Heat Sink. 33971_ K-01 Serf collects debris. 33973_ R-10 Processor collects Adv. Heat Sink. 33974_ K-01 Serf collects debris. 33976_ R-10 Processor collects Hvy. Laser. 33978_ R-10 Processor collects Com. Wheel. 33978_ K-01 Serf collects debris. 33980_ R-10 Processor collects Adv. Heat Sink. 33981_ R-10 Processor collects Adv. Weight Redist. System. 33982_ K-01 Serf collects debris. 33984_ R-10 Processor collects Unknown Energy Gun. 33985_ R-10 Processor collects Adv. Heat Sink. 33986_ K-01 Serf collects debris. 33988_ R-10 Processor collects Imp. Ion Engine. 33989_ K-01 Serf collects debris. 33999_ System corrupted: Matter fused (-7). 34000_ Ended siege mode. 34000_ K-01 Serf collects debris. Map ----- +----------------------------------------------------+ | ?????????????????????????????# ?######? | | ?????????????????????????????# ## =# ! " | | ?????????????????????????????# " # """ | | ?????????????????????????????# "T + """ | | ?????????????????????????????????#### # " | | ????????????????????????????????????## ## | | ?????????????????????????????????????# #?? | | ?????????????????????????????????????# #??##+###+ | | ????????????????????????????######???# #?????? | | ????????????????????????????# ??# #?????? | | ????????????????????????????# ??# #?????? | | ????????????????????????????# " ?#% #?????? | | ????????????????????????????+ """ ?# #?????? | | ????????????????????????????# """ #![#?????? | | ????????????????????????????# " #*%#?????? | | ????????????????????????????# + !#?????? | | ????????????????????????????# # #?????#### | | ????????????????????????????# # #?????#### | | ????????????????????????????########?# #?????? | | ?????????????????????????????###?????# #?????? | | ?????????#########??########## ####### %#?????? " | | ?????????# ![!"??" % #?????? ?" | | ??# ?????# ![ !""?" g = % #????????" | | ### ###%= ]%!*"?"* %= *%! [= =#?????? ? | | !* [!|"""= !*= %k =*!=!#?????? | | ! ! =* ! =%@=* *== %=#?????? | | *%! !]="""!= =!= g *% ! %########## | | !*]!"?" ! = ## | | ########## "?" !% % %%%## | | ?????????# ""?" """ """ ## | | ?????????# "??" """T"""% ## | | ?????????#########??########## ####### ## | | ?????????????????????????????###?????# ## | | ??????????????????????????????????#### ## | | ?????????????????????????????????## #%%## | | ?????????????????????????????????# = %# | | ?????????????????????????????????## %## | | ??????????????????????????????????# %## | | ?????????????????????????????????# # ## | | ?????????????????????????????????## ##% ## ? | | ?????????????????????????#+######### ###+##### | | ??????????????????????# | | ??????????????????????# % | | ?????????????????????????########## # ######### | | ?????????????????????????????????### # #??????? | | ?????????????????????????????????# #??????? | | ?????????????????????????????????# #??????? | | ?????????????????????????????????# """ #??????? | | ?????????????????????????????????# """ #??????? | | ?????????????????????????????????# R" #??????? | +----------------------------------------------------+ Best States ------------- Heat Dissipation 99 Coolant Potential 100 Energy Generation 45 Energy Capacity 575 Matter Stores 300 Matter Capacity 300 Sight Range 23 Robot Scan Range 20 Terrain Scan Density 10 Armor Coverage 1600 Resistance: KI 30 Resistance: TH 30 Resistance: EM 75 Propulsion Shielding 66 Weapon Shielding 66 Phase Shifting 5 Evasion (%) 45 Targeting Accuracy 6 Target Analysis 8 Core Analysis 10 Armor Integrity Analysis 66 Recoil Reduction 4 Offensive Hacking 10 Defensive Hacking 14 Relay Coupler Types 185 Relay Coupler Value 5 Item Schematics ----------------- Hcp. Storage Unit | -10/Materials | Hacked Welding Torch | -9/Materials | Scanalyzed Datajack | -9/Materials | Scanalyzed Adv. Sensor Array | -7/Factory | Scanalyzed Robot Schematics ------------------ P-60 Hacker | -7/Factory | Hacked Fabricated ------------ P-60 Hacker | x2 | -7/Factory P-60 Hacker | x2 | -7/Factory P-60 Hacker | x2 | -5/Factory Y-64 Sentinel | x2 | -5/Factory | Preloaded P-60 Hacker | x2 | -5/Factory P-60 Hacker | x2 | -4/Factory Alien Tech Used ----------------- None Achievements -------------- None Challenges ------------ None Game ------ Seed PhasingCouplerWell Manual? 0 Play Time 03:32:01 Cumulative 694.9 hours Start 2020.11.01 @ 10:32:42 End 2020.11.01 @ 15:56:23 Sessions 5 Manual Loads 0 Difficulty Rogue Special Mode Halloween2020/ForbiddenLore Game No. 493 Rogue 489 Adventurer 4 Explorer 0 Win Type 0 Total 79 Types 63/6/3/3/2/0/0/1/1 Lore% 94 Gallery% 96 Achievement% 96 Wizard Run 0 Options --------- ASCII 0 Keyboard 1 Movement Vi Keybinds 0 Fullscreen 0 Font 16/Terminus Map View 76x50 Tactical HUD 1 Map Filters NONE Filters NONE Steam 1 RUN: 5e29de70-600d-413e-8968-4580ae9f3e02